Cogmind - Beta 17.1 @@@ ROGUE MODE // 2026.09.11 @ 16:09:54 Player: poison Result: Destroyed by Y-54 Guardian with Gatling Laser Performance ------------- Evolutions (4) 2000 Regions Visited (6) 1200 Robots Destroyed (88) 440 Value Destroyed (2635) 2635 Prototype IDs (8) 160 Alien Tech Used (0) 0 Bonus (131) 131 TOTAL SCORE: 6566 Bonus ------- High Alert Combat Kills 25 Follower Combat Kills 106 Cogmind --------- Core Integrity 0/850 Matter 101/300 Energy 89/100 System Corruption 2% Temperature Cool (22) Movement Core (200) Ox3 Location -6/Factory Parts ------- > --- POWER (1) -------- (None) > --- PROPULSION (4) --- (None) > --- UTILITY (8) ------ Advanced Visual Processing Unit Improved Signal Interpreter > --- WEAPON (2) ------- Gauss Rifle Antimatter Cannon > --- INVENTORY (5) ---- Huge Storage Unit Improved Terrain Scanner ECM Suite Recalibrator Peak State ------------ > --- POWER ------------ Micro Nuclear Core > --- PROPULSION ------- Improved Titanium Leg Improved Titanium Leg Improved Titanium Leg Improved Titanium Leg > --- UTILITY ---------- High-capacity Storage Unit Advanced Visual Processing Unit Improved Sensor Array Improved Signal Interpreter Improved Medium Armor Plating Hacking Suite > --- WEAPON ----------- Cooled Pulse Rifle Cooled Pulse Rifle > --- INVENTORY -------- Micro Nuclear Core Armored Huge Wheel Improved Heat Sink Coolant Injector Huge Storage Unit High-capacity Battery High-capacity Matter Pod Improved Terrain Scanner Core Analyzer Transmission Jammer ECM Suite Reaction Control System Improved Utility Shielding Hardened Medium Armor Plating Hardened Medium Armor Plating Recalibrator Cooled Pulse Rifle Missile Launcher Remote Datajack [Rating: 53] Favorites ----------- Power Nuclear Core Engine Ion Engine Power Core Nuclear Core Propulsion Improved Titanium Leg Treads Light Treads Leg Improved Titanium Leg Wheel Armored Wheel Hover Unit Improved Hover Unit Flight Unit Xenon Bombardment Thruster Utility Hacking Suite Device Improved Sensor Array Storage Large Storage Unit Processor Improved Signal Interpreter Hackware Hacking Suite Protection Light Armor Plating Weapon Cooled Pulse Rifle Energy Gun Cooled Pulse Rifle Energy Cannon Plasma Cannon Ballistic Gun Light Assault Rifle Ballistic Cannon Advanced Assault Cannon Launcher Missile Launcher Build | -11 -10 -9 -8 -7 -7 -6 ------- Run | Yrd Mat Mat Mat Fac Low Fac Slots Evolved 8 | . . 2 2 2 . 2 Power . | . . . . . . . Propulsion 2 | . . 1 1 . . . Utility 6 | . . 1 1 2 . 2 Weapon . | . . . . . . . Parts Attached 100 | 7 4 27 21 25 6 10 Power 7 | 1 1 2 1 1 1 . Engine 2 | 1 . 1 . . . . Core 5 | . 1 1 1 1 1 . Reactor . | . . . . . . . Propulsion 27 | 2 1 8 6 9 1 . Treads 5 | 1 . 3 . . 1 . Leg 7 | . . . 1 6 . . Wheel 6 | 1 1 1 1 2 . . Hover 3 | . . 3 . . . . Flight 6 | . . 1 4 1 . . Utility 31 | 2 2 6 7 7 4 3 Device 10 | 1 . . 5 . 3 1 Storage 5 | 1 . 2 1 1 . . Processor 3 | . . 1 . 2 . . Hackware 2 | . . 1 . 1 . . Protection 11 | . 2 2 1 3 1 2 Artifact . | . . . . . . . Weapon 35 | 2 . 11 7 8 . 7 Energy Gun 7 | . . 2 1 4 . . Energy Cannon 5 | . . 1 3 1 . . Ballistic Gun 10 | 2 . 4 . 1 . 3 Ballistic Cannon 10 | . . 2 2 2 . 4 Launcher 3 | . . 2 1 . . . Special Weapon . | . . . . . . . Impact Weapon . | . . . . . . . Slashing Weapon . | . . . . . . . Piercing Weapon . | . . . . . . . Special Melee Weapon . | . . . . . . . Unidentified Prototypes 8 | . . 5 . 2 . 1 Parts Lost 34 | . 1 2 5 12 3 11 Power 3 | . . 1 . 1 1 . Propulsion 9 | . . . 3 4 1 1 Utility 13 | . 1 1 2 4 1 4 Weapon 9 | . . . . 3 . 6 Highest Loss Streak 12 | . 1 1 2 12 1 8 To Critical Strikes . | . . . . . . . Average Backups 11 | 1 7 9 9 16 11 4 Power . | . . . 1 1 . . Propulsion . | . 1 1 . . . . Utility 8 | . 4 5 7 12 10 4 Weapon 1 | . . 1 1 1 . . Tool/Special . | . . . . . . . Unused Backups 21 | . 3 3 . 6 7 2 Power 2 | . 1 . . 1 . . Propulsion 2 | . 1 . . 1 . . Utility 12 | . . 1 . 3 6 2 Weapon 2 | . 1 1 . . . . Tool/Special 3 | . . 1 . 1 1 . Average Slot Usage (%) 90 | . 100 99 89 95 55 31 Engine 1 | . 8 1 . . . . Core 7 | . 5 9 9 6 4 . Treads 3 | . 14 9 . . . 1 Leg 9 | . . . 1 22 . . Wheel 8 | . 14 18 5 2 6 . Hover 2 | . . 5 2 . . . Flight 4 | . . . 19 1 . . Device 5 | . 1 . 9 7 14 7 Storage 8 | . 14 11 9 7 6 . Processor 8 | . . . 9 14 15 13 Hackware 5 | . . 10 . 6 . . Protection 8 | . 12 10 5 7 6 5 Energy Gun 4 | . . 2 6 7 . . Energy Cannon 1 | . . . 4 2 . . Ballistic Gun 6 | . 28 14 . . . . Ballistic Cannon 3 | . . 4 5 2 . 1 Peak Build Rating 53 | 9 11 22 36 53 29 24 Average Rating 30 | 6 9 19 29 45 25 14 On Entrance 14 | . 9 11 19 29 19 15 Avg Prop Armor Cover (%) 8 | 14 10 8 6 6 . . Naked Turns . | . . . . . . . Heaviest Build 64 | 13 15 39 49 64 57 14 Greatest Support 80 | 20 20 24 33 80 28 20 Greatest Overweight (x) 4 | 1 4 1 4 4 2 4 Average Overweight (x) 1 | . 1 . 1 1 1 . Largest Inventory Capacity 20 | 8 8 15 15 20 20 5 Average Capacity 13 | 7 8 10 12 17 18 5 Most Carried 20 | 4 8 15 10 20 15 4 Average Carried 11 | 1 7 9 9 16 11 4 Final Capacity 20 | 8 8 10 15 20 5 5 Final Carried 16 | 4 8 9 10 16 4 4 Class Distribution -------------------- 54% | Mutant 31% | Skirmisher 8% | Scavenger-Mutant 5% | Sprinter Dominant Class ---------------- Mutant | -10/Materials Mutant | -9/Materials Mutant | -8/Materials Skirmisher | -7/Factory Mutant | -7/Lower Caves Mutant | -6/Factory Resources | -11 -10 -9 -8 -7 -7 -6 ----------- Run | Yrd Mat Mat Mat Fac Low Fac Matter Collected 2364 | 306 190 974 260 562 72 . Remotely . | . . . . . . . Salvage Created 2904 | 121 210 1247 483 683 . 160 Parts 151 | 10 11 80 21 22 . 7 Haulers Intercepted 5 | . . 4 . 1 . . Recyclers Shooed 2 | 1 . . . 1 . . Parts Field Recycled . | . . . . . . . Retrieved Matter . | . . . . . . . Parts Self-Destructed 6 | . . . . . 6 . Prevented 5 | . . . . . 5 . Parts Restored . | . . . . . . . Kills | -11 -10 -9 -8 -7 -7 -6 ------- Run | Yrd Mat Mat Mat Fac Low Fac Combat Hostiles Destroyed 60 | . 4 29 13 10 . 4 Guns 29 | . 4 17 3 5 . . Cannons 13 | . . 4 6 . . 3 AOE 15 | . . 8 3 3 . 1 Classes Destroyed 14 | 2 2 7 . 2 . 1 Worker 4 | . . 3 1 . . . Builder 2 | . . 2 . . . . Tunneler 3 | 3 . . . . . . Hauler 5 | . . 4 . 1 . . Recycler 5 | 1 . 1 . 3 . . Mechanic 1 | . 1 . . . . . Operator 2 | . . 1 . 1 . . Watcher 6 | . . 2 3 1 . . Swarmer 11 | . . 6 4 1 . . Grunt 32 | . 4 16 7 3 . 2 Brawler 1 | . . . . . . 1 Sentry 10 | . . 7 2 . . 1 Hunter 1 | . . . . 1 . . Programmer 5 | . . . . 5 . . Best Kill Streak 6 | 2 2 6 4 4 . 4 Combat Bots Only 4 | . 2 3 3 3 . 4 Max Kills in Single Turn 3 | 1 1 3 3 2 . 1 Gunslinging 1 | . . . 1 . . . Exploded 3 | . . 3 3 2 . 1 Melee . | . . . . . . . Uniques/NPCs Destroyed . | . . . . . . . Combat | -11 -10 -9 -8 -7 -7 -6 -------- Run | Yrd Mat Mat Mat Fac Low Fac Hostile Shots Fired 848 | . 28 106 70 229 59 356 Missed 306 | . 6 33 17 74 19 157 Hits 542 | . 22 73 53 155 40 199 Melee 3 | . . . . 1 . 2 Projectile 539 | . 22 73 53 154 40 197 Critical Strikes 16 | . 1 . 2 2 4 7 Damage Taken 7648 | . 291 1134 751 2346 634 2492 Core 1833 | . 54 233 167 401 127 851 Absorbed by Shields 22 | . . . . . . 22 Redirected to Shielding 72 | . . . . . 8 64 Regen/Repaired (Parts) 132 | . . 119 . 13 . . Core Remaining (%) 62 | 100 78 41 69 . 24 . Volleys Fired 211 | 18 25 73 39 44 . 12 Largest 2 | 2 2 2 2 2 . 2 Hottest 120 | 40 40 68 120 120 . 66 Shots Fired 407 | 36 50 142 77 78 . 24 Gun 272 | 36 50 107 14 60 . 5 Cannon 120 | . . 27 58 16 . 19 Launcher 15 | . . 8 5 2 . . Special . | . . . . . . . Kinetic 275 | 36 50 126 31 8 . 24 Thermal 95 | . . . 27 68 . . Explosive 15 | . . 8 5 2 . . Electromagnetic 22 | . . 8 14 . . . Robot Hit Streak 21 | 7 18 13 21 12 . 5 Robot Miss Streak 6 | 2 4 6 2 3 . 2 Penetration Max . | . . . . . . . Secondary Targets 1 | . . . 1 . . . Max Gunslinging Chain 1 | . . . 1 . . . Shots Hit Robots 267 | 26 33 99 41 53 . 15 Core Hits 153 | 7 14 71 27 23 4 7 Critical Kills 4 | . . 1 1 2 . . Critical Parts Destroyed . | . . . . . . . Critical Strikes 7 | . . 1 3 2 . 1 Meltdown 3 | . . . 1 2 . . Destroy 1 | . . 1 . . . . Blast 3 | . . . 2 . . 1 Melee Attacks . | . . . . . . . Impact . | . . . . . . . Slashing . | . . . . . . . Piercing . | . . . . . . . Sneak Attacks . | . . . . . . . Combat Hostiles . | . . . . . . . Follow-up Attacks . | . . . . . . . Damage Inflicted 6370 | 207 279 2267 1497 1483 22 615 Guns 3041 | 207 268 1265 250 986 . 65 Cannons 1881 | . . 374 743 289 . 475 Explosions 1282 | . . 565 453 208 . 56 Melee . | . . . . . . . Ramming 166 | . 11 63 51 . 22 19 Kinetic 3073 | 207 268 1509 438 111 . 540 Thermal 1765 | . . 111 490 1164 . . Explosive 986 | . . 454 268 208 . 56 Electromagnetic 380 | . . 130 250 . . . Impact . | . . . . . . . Slashing . | . . . . . . . Piercing . | . . . . . . . Highest Corruption 4 | . 2 4 . 1 1 2 Average Corruption 1 | . 2 4 . 1 1 2 Corruption Purged . | . . . . . . . Corruption Blocked . | . . . . . . . Effects 18 | . 7 2 . 5 1 3 Message Errors 5 | . 3 1 . . 1 . Matter Fused 4 | . 2 . . 1 . 1 Heat Flow Errors 1 | . 1 . . . . . Energy Discharges 2 | . . 1 . 1 . . Parts Fused 2 | . 1 . . 1 . . Data Loss (minor) 1 | . . . . . . 1 Data Loss (major) 1 | . . . . . . 1 Weapon Failures 2 | . . . . 2 . . Overload Shots 4 | . . . . 4 . . Overflow Damage 192 | . . 85 99 8 . . Projectiles 8 | . . . . 8 . . Explosions 184 | . . 85 99 . . . Melee . | . . . . . . . Knockbacks 12 | . 1 2 8 . . 1 Impact 2 | . 1 . 1 . . . Kinetic 9 | . . 2 6 . . 1 Secondary 1 | . . . 1 . . . Self-Inflicted Damage 631 | . 5 227 107 44 9 239 Shots 11 | . . 5 2 1 . 3 Rammed 30 | . 3 7 9 1 5 5 Targets Rammed 30 | . 3 7 9 1 5 5 Kicked . | . . . . . . . Crushed . | . . . . . . . Highest Temperature 500 | . 271 141 500 171 . 48 Average Temperature 74 | . 75 19 116 69 . 14 Received Heat Transfer 2606 | . 177 339 252 402 432 1004 Effects 9 | . . . 9 . . . Shutdowns 2 | . . . 2 . . . Energy Bleed 1 | . . . 1 . . . Interference 5 | . . . 5 . . . Matter Decay 1 | . . . 1 . . . Siege Activations . | . . . . . . . Martial Activations . | . . . . . . . Shielding Activations . | . . . . . . . Robots Disrupted . | . . . . . . . Combat Hostiles . | . . . . . . . Robots Corrupted 1 | . . . 1 . . . Combat Hostiles . | . . . . . . . Parts Fried 3 | . . 1 2 . . . Impact Corruptions 1 | . . . 1 . . . Robots Melted 4 | . . . 1 3 . . Combat Hostiles 3 | . . . 1 2 . . Parts Melted 7 | . . . 1 6 . . Heat Transferred 2968 | . . 150 800 2018 . . Parts Sabotaged . | . . . . . . . Parts Stolen . | . . . . . . . Parts Stripped . | . . . . . . . Power Chain Reactions 3 | . . 1 2 . . . Alert | -11 -10 -9 -8 -7 -7 -6 ------- Run | Yrd Mat Mat Mat Fac Low Fac Maximum Alert Level 2 | . . 2 1 . . . Low Security (%) 87 | 100 100 64 85 100 . 100 Level 1 7 | . . 16 14 . . . Level 2 5 | . . 18 . . . . Level 3 . | . . . . . . . Level 4 . | . . . . . . . Level 5 . | . . . . . . . High Security . | . . . . . . . Max Security . | . . . . . . . Peak Influence 494 | 10 30 494 230 131 . 101 Initial 203 | . . . 203 79 . 54 Average 95 | 1 6 222 118 17 . 44 Influence Increases 2345 | 20 95 1028 457 374 105 266 Destroy 0b10 Robot/C 1260 | . 80 580 260 200 60 80 Destroy 0b10 Robot/NC 140 | 20 5 65 20 30 . . Destroy Leader 312 | . 10 152 46 74 10 20 Allied During Kill 20 | . . . . . 20 . Successful Hack 55 | . . 8 2 45 . . Disable Machine 165 | . . 75 30 15 . 45 Destroy Structure 198 | . . 88 69 10 . 31 Partial Spotted 30 | . . . 30 . . . Lose Combat Pursuer 165 | . . 60 . . 15 90 Influence Decreases 2259 | 20 95 546 763 509 59 267 Entered New Map 425 | . . . 279 97 16 33 Time Decay 1510 | 20 85 526 434 292 43 110 Lost Part 304 | . 10 20 50 120 . 104 Lost Ally 20 | . . . . . . 20 Squads Dispatched 14 | . . 4 2 7 . 1 Investigation 6 | . . 3 1 1 . 1 Extermination 5 | . . . . 5 . . Reinforcement 3 | . . 1 1 1 . . Assault . | . . . . . . . Garrison . | . . . . . . . Intercept . | . . . . . . . Searches Triggered . | . . . . . . . Construction Impeded 2 | . . . 1 1 . . Haulers Reinforced . | . . . . . . . Active Scanning Responses . | . . . . . . . Cargo Convoy Interrupts . | . . . . . . . Stealth | -11 -10 -9 -8 -7 -7 -6 --------- Run | Yrd Mat Mat Mat Fac Low Fac Distress Signals 4 | . . 2 2 . . . Communications Jammed . | . . . . . . . Distress Signals . | . . . . . . . Times Spotted 117 | . 11 43 20 23 7 13 Peak Tracking Total 9 | . 5 4 6 9 4 7 Tactical Retreats 7 | . . 3 . . 2 2 ECM-based Alert Blocks 3 | . . . . . 3 . Traps | -11 -10 -9 -8 -7 -7 -6 ------- Run | Yrd Mat Mat Mat Fac Low Fac Traps Triggered 4 | . 1 1 1 1 . . Indirectly . | . . . . . . . Trap Hack Attempts . | . . . . . . . Triggered . | . . . . . . . Disarmed . | . . . . . . . Reprogrammed . | . . . . . . . Reused . | . . . . . . . Traps Extracted . | . . . . . . . Installed . | . . . . . . . Triggered . | . . . . . . . Machines | -11 -10 -9 -8 -7 -7 -6 ---------- Run | Yrd Mat Mat Mat Fac Low Fac Machines Disabled 11 | . . 5 2 1 . 3 Max in Single Turn 3 | . . 2 1 1 . 3 Garrison Access 1 | . . . . 1 . . Machines Repaired . | . . . . . . . Machines Dismantled . | . . . . . . . Machines Sabotaged . | . . . . . . . Overloaded Fab Kills . | . . . . . . . Hacking | -11 -10 -9 -8 -7 -7 -6 --------- Run | Yrd Mat Mat Mat Fac Low Fac Machines Accessed 24 | . 3 7 4 9 . 1 Terminals 11 | . 2 3 2 4 . . Fabricators 1 | . . . . . . 1 Repair Stations 4 | . . 2 1 1 . . Recycling Units 4 | . 1 1 . 2 . . Scanalyzers 3 | . . 1 1 1 . . Garrison Access 1 | . . . . 1 . . Total Hacks 72 | . 7 18 21 24 . 2 Successful 35 | . 2 9 13 11 . . Failed 37 | . 5 9 8 13 . 2 Catastrophic 6 | . 2 1 2 1 . . Database Lockouts . | . . . . . . . Manual 14 | . 2 6 5 1 . . Terminals 23 | . 4 6 5 8 . . Fabricators 2 | . . . . . . 2 Repair Stations 14 | . . 8 2 4 . . Recycling Units 10 | . 3 1 . 6 . . Scanalyzers 20 | . . 3 14 3 . . Garrison Access 3 | . . . . 3 . . Terminal Hacks 3 | . . 1 . 2 . . Open DSF 2 | . . . . 2 . . Repair Station Index 1 | . . 1 . . . . Fabricator Hacks . | . . . . . . . Repair Station Hacks 7 | . . 5 . 2 . . Scan Component 4 | . . 3 . 1 . . Repair 3 | . . 2 . 1 . . Recycling Unit Hacks 7 | . 2 1 . 4 . . Report Inventory 4 | . 1 1 . 2 . . Retrieve Matter 1 | . . . . 1 . . Retrieve Components 2 | . 1 . . 1 . . Scanalyzer 17 | . . 2 13 2 . . Insert Component 6 | . . . 5 1 . . Analyze 6 | . . . 5 1 . . Retrieve Study 5 | . . 2 3 . . . Garrison Access Hacks 1 | . . . . 1 . . Seal Access 1 | . . . . 1 . . Unauthorized Hacks . | . . . . . . . Terminals . | . . . . . . . Fabricators . | . . . . . . . Repair Stations . | . . . . . . . Recycling Units . | . . . . . . . Scanalyzers . | . . . . . . . Garrison Access . | . . . . . . . Data Cores Recovered 2 | . . 1 . 1 . . Used . | . . . . . . . Hacking Detections 20 | . 3 6 4 6 . 1 Full Trace Events 4 | . 1 2 . . . 1 Feedback Events . | . . . . . . . Feedback Blocked . | . . . . . . . Robot Schematics Acquired . | . . . . . . . Robots Built . | . . . . . . . Authchips . | . . . . . . . Time . | . . . . . . . Total Robot Build Rating . | . . . . . . . Part Schematics Acquired 6 | . . . 5 1 . . Parts Built . | . . . . . . . Authchips . | . . . . . . . Time . | . . . . . . . Total Part Build Rating . | . . . . . . . Part Studies Acquired 4 | . . 2 2 . . . Parts Repaired 3 | . . 2 . 1 . . Time 96 | . . 52 . 44 . . Parts Recycled . | . . . . . . . Recycled Matter . | . . . . . . . Retrieved Matter . | . . . . . . . Retrieved Components 9 | . 2 . . 7 . . Parts Scanalyzed 6 | . . . 5 1 . . Part Schematics Acquired 6 | . . . 5 1 . . Parts Damaged . | . . . . . . . Bothacking | -11 -10 -9 -8 -7 -7 -6 ------------ Run | Yrd Mat Mat Mat Fac Low Fac Used RIF Installer . | . . . . . . . Robots Hacked . | . . . . . . . Non-combat . | . . . . . . . Combat . | . . . . . . . Robot Hacks Applied . | . . . . . . . Relay Couplers Released . | . . . . . . . Fabnet Peak Effective % . | . . . . . . . Robots Rewired . | . . . . . . . Allies Hacked 1 | . . . . . 1 . Hacks Repelled . | . . . . . . . Allies | -11 -10 -9 -8 -7 -7 -6 -------- Run | Yrd Mat Mat Mat Fac Low Fac Total Allies 2 | . . . . . 2 . Largest Group 2 | . . . . . 2 1 Highest-Rated Group 181 | . . . . . 181 16 Highest-Rated Ally 165 | . . . . . 165 16 Total Orders . | . . . . . . . Ally Attacks 9 | . . . . . 8 1 Total Damage 278 | . . . . . 264 14 Kills 3 | . . . . . 3 . Allies Corrupted . | . . . . . . . Allies Melted . | . . . . . . . Intel | -11 -10 -9 -8 -7 -7 -6 ------- Run | Yrd Mat Mat Mat Fac Low Fac Active Infowar (turns) 4341 | 66 22 113 993 2481 408 258 Optics 4253 | . . 113 993 2481 408 258 Sensors 3037 | . . . 598 2439 . . Terrain 443 | 66 22 . . . 355 . Jamming 32 | . . . . . . 32 ECM 475 | . . . 17 167 291 . Robot Analysis Total . | . . . . . . . Derelict Logs Recovered . | . . . . . . . Drone Launches . | . . . . . . . Drone Recoveries . | . . . . . . . Exploration | -11 -10 -9 -8 -7 -7 -6 ------------- Run | Yrd Mat Mat Mat Fac Low Fac Turns Passed 6601 | 180 382 1832 1060 2481 408 258 Spaces Moved 4424 | 113 266 1165 975 1383 335 187 Core 217 | 6 1 . . . 53 157 Treads 183 | 29 3 108 . . 13 30 Legs 889 | . . . 2 887 . . Wheels 2328 | 78 262 857 366 496 269 . Hover 285 | . . 200 85 . . . Flight 522 | . . . 522 . . . Fastest Speed 31 | 50 95 80 31 115 50 50 Average Speed 105 | 105 100 102 72 128 116 107 Slowest Speed 340 | 160 250 200 330 340 160 250 Overloaded Moves . | . . . . . . . Propulsion Burnouts . | . . . . . . . Robots Hopped 2 | . . . 2 . . . Potential Cave-ins 3 | . . . 3 . . . Cave-ins Triggered . | . . . . . . . Exploration Rate (%) 28 | 3 36 58 30 27 36 7 Regions Visited 6 Branch Regions 1 Pre-discovered Areas . | . . . . . . . Known Exits Taken 2 | . . . . 1 1 . Unknown Exits Taken 4 | 1 1 1 1 . . . Scrap Searched . | . . . . . . . Spaces Dug . | . . . . . . . Terrain Destroyed 230 | . . 91 90 9 . 40 Melee . | . . . . . . . Projectile 34 | . . . 28 . . 6 AOE 196 | . . 91 62 9 . 34 Terrain Rammed . | . . . . . . . Walls Destroyed . | . . . . . . . Machines Disabled . | . . . . . . . Actions | -11 -10 -9 -8 -7 -7 -6 --------- Run | Yrd Mat Mat Mat Fac Low Fac Total 5978 | 141 342 1669 1244 2011 354 217 Wait 1037 | . 32 345 177 483 . . Move 4414 | 112 265 1164 970 1382 334 187 Hop 2 | . . . 2 . . . Pick Up 54 | 4 8 12 6 23 1 . Fast Attach 65 | 7 1 13 14 18 1 11 Attach 19 | . 1 3 3 6 6 . Detach 11 | . . 3 1 6 1 . Swap 46 | . 2 22 8 13 1 . Drop 89 | . 5 27 15 35 5 2 Fire 211 | 18 25 73 39 44 . 12 Melee . | . . . . . . . Ram 29 | . 3 6 9 1 5 5 Kick . | . . . . . . . Crush 1 | . . 1 . . . . Escape Stasis . | . . . . . . . Rewire . | . . . . . . . Trap . | . . . . . . . Miscellaneous . | . . . . . . . Route ------- -11/Scrapyard -10/Materials (discovered 2 exits: *Mat / [*Min]) -9/Materials (discovered 3 exits: *Mat x2 / [*Sto]) -8/Materials -7/Factory (discovered 3 exits: *Fac x2 / *Low) -7/Lower Caves -6/Factory History --------- Turn | Location | Event 9 | -11/Scrapyard | Discovered new exit (range 15) 181 | -11/Scrapyard | Entered Materials 244 | -10/Materials | Discovered new exit (range 16) 300 | -10/Materials | Build established: Mutant 470 | -10/Materials | Discovered new exit (range 16) 563 | -10/Materials | Entered another Materials area 563 | -9/Materials | Evolved 2 slots: Propulsion x1, Utility x1 563 | -9/Materials | Discovered new exit (range 15) 982 | -9/Materials | Repaired Lgt. Armor Plating 1916 | -9/Materials | Repaired Lgt. Armor Plating 1989 | -9/Materials | Discovered new exit (range 16) 2297 | -9/Materials | Core integrity fell below 50% 2360 | -9/Materials | Build established: Scavenger-Mutant 2382 | -9/Materials | Discovered new exit (range 10) 2395 | -9/Materials | Entered another Materials area 2395 | -8/Materials | Evolved 2 slots: Propulsion x1, Utility x1 2779 | -8/Materials | Build established: Sprinter 3115 | -8/Materials | Build established: Mutant 3344 | -8/Materials | Discovered new exit (range 13) 3455 | -8/Materials | Entered Factory 3455 | -7/Factory | Evolved 2 slots: Utility x2 3510 | -7/Factory | Discovered new exit (range 7) 4051 | -7/Factory | Build established: Skirmisher 4704 | -7/Factory | Discovered new exit (range 14) 5047 | -7/Factory | Repaired Transmission Jammer 5456 | -7/Factory | Discovered new exit (range 9) 5906 | -7/Factory | Core integrity fell below 50% 5933 | -7/Factory | Identified exit to Lower Caves 5936 | -7/Factory | Entered Lower Caves 5964 | -7/Lower Caves | Lost 12 parts (1p4n4u3w) 6150 | -7/Lower Caves | Build established: Mutant 6299 | -7/Lower Caves | ME-RLN showed up to help 6301 | -7/Lower Caves | ME-RLN revealed a hidden path 6330 | -7/Lower Caves | Identified exit to Factory 6344 | -7/Lower Caves | Entered Factory 6344 | -6/Factory | Accompanied by 1 ally 6344 | -6/Factory | Evolved 2 slots: Utility x2 6576 | -6/Factory | Core integrity fell below 50% 6592 | -6/Factory | Core integrity fell below 20% 6602 | -6/Factory | Destroyed by Y-54 Guardian with Gatling Laser Last Messages --------------- recycling unit. U-05 Engineer lays Concrete. Slug penetrates Wall. The unstable cave ceiling collapses. U-05 Engineer lays Concrete. R-10 Processor inserts Wheel into recycling unit. Critical hit (Burn: +37). U-05 Engineer lays Concrete. Gauss Rifle destroyed. U-05 Engineer lays Concrete. The unstable cave ceiling collapses. U-05 Engineer lays Concrete. Acquired Gauss Rifle. The unstable cave ceiling collapses. R-10 Processor inserts Structural Scanner into recycling unit. Destroyed Imp. Heat Sink. Slug penetrates Y-54 Guardian. U-05 Engineer lays Concrete. Map ----- +----------------------------------------------------+ | ????????????????????????????????????????? | | ????????????????????????????????????????? | | ????????????????????????????????????????? | | ????????????????????????????????????????? | | ????????????????????????????????????????? | | ????????????????????????????????????????? | | ????????????????????????????????????????? | | ??????????????????????? ????????????? | | ??????????????????????? #???????????? | | ??????????????????????+ #???????????? | | ??????????????????????# #???????????? | | ??????????????????????# #???????????? | | ??????????????????????# #???????????? | | ??????????????????????# #???????????? | | ????????##########????# #???????????? | | ??????#### # ###### #???????????? | | ??????## [ # #???????????? | | ??????# """ # #???????????? | | ??????# # RY" # #??########?? | | ?????## # """ # #??# """" #?? | | ?????# # u # #??# """" #?? | | ?????# # %# #??# """" #?? | | ??????## *# #??# """" #?? | | ??????# %Y[+ #??# #?? | | ?????# # %% %# #??# #?? | | ?????#### @[ %g=# #######+##### | | ???????# =% /Y | | ???????### ##;#;#####+#+###### # | | ?????????### ##?### ## # | | ???????????##?????# ## # | | ??????????????????# """" """" ## # | | ??????????????????# """" """" ## # | | ????????????####### """" """" ## # | | ????????????# # """" """" ## + | | ????????????# # ## # | | ????????????# #########+###### # | | ????????????# #???????# ???? # | | ????????????# #???????# ??? # | | ????????????# #?####### #??########## | | ????????????# #?#""""## #???######### | | ????????????# #?#""F"## #???# | | ????????????# ###"" ## ##### | | ????????????# # | | ????????????+ ! # | | ????????????# " + | | ????????????# "" # | | ????????????# G * ! #? ! | | ????????????# ""[%! ^""" #? ! | | ????????????# " ""F ###+##### | | ????????????# ^"" | +----------------------------------------------------+ Best States ------------- Heat Dissipation 37 Energy Generation 16 Energy Capacity 250 Matter Stores 300 Matter Capacity 300 Sight Range 20 Robot Scan Range 15 Terrain Scan Range 16 Terrain Scan Density 10 ECM Strength 1 Jamming Range 12 Additional Mass Support 9 Armor Coverage 375 Utility Shielding 66 Evasion (%) 63 Recoil Reduction 1 Offensive Hacking 10 Item Schematics ----------------- Lgt. Armor Plating | -8/Materials | Scanalyzed Recalibrator | -8/Materials | Scanalyzed Lrg. Storage Unit | -8/Materials | Scanalyzed ECM Suite | -8/Materials | Scanalyzed Imp. Sensor Array | -8/Materials | Scanalyzed Gravmag System | -7/Factory | Scanalyzed Robot Schematics ------------------ None Fabricated ------------ Nothing Repaired ---------- Lgt. Armor Plating | 18% | -9/Materials Lgt. Armor Plating | 48% | -9/Materials Transmission Jammer | 35% | -7/Factory Studied --------- Arm. Wheel | -9/Materials | Hacked Lgt. Treads | -9/Materials | Hacked Nuclear Core | -8/Materials | Hacked Missile Launcher | -8/Materials | Hacked Alien Tech Used ----------------- None Achievements -------------- Hydra Serviceable Loadout Throw Away The Key Universal Adapter Challenges ------------ None Game ------ Seed ArmoredLargeDoublenader Manual? 0 Play Time 01:27:25 Cumulative 7.5 hours Start 2026.09.11 @ 14:30:21 End 2026.09.11 @ 16:09:54 Sessions 1 Manual Loads 0 Difficulty Rogue Special Mode None Game No. 11 Rogue 11 Adventurer 0 Explorer 0 Win Type - Total 0 Types 0/0/0/0/0/0/0/0/0/0 Lore% 8 Gallery% 11 Achievement% 9 Wizard Run 0 Options --------- Layout 1 ASCII 0 Keyboard 0 Movement Arrows Keybinds 0 Fullscreen 1 Font 24/Smallcaps Map View 50x35 Zoom Use 0% Tactical HUD 0 Map Filters NONE Filters NONE Steam 1 RUN: 011ee99e-d36f-4022-aa08-ab14fe3f3c71